fUSD/lending_fUSD_20240119
["ID","MTS","AMOUNT","RATE_DAILY","PERIOD"]
[312147416,1705669846330,-1988.16,0.00021917,5]
[312147418,1705669846340,-687.96,0.00021917,2]
[312147420,1705669846350,-500.0,0.00021917,2]
[312147422,1705669846361,-1689.55,0.00021917,2]
[312147424,1705669846371,-574.45,0.00021917,2]
[312147426,1705669846382,-500.0,0.00021917,2]
[312147428,1705669846391,-621.19,0.00021917,2]
[312147430,1705669846402,-2788.01,0.00021917,2]
[312147432,1705669846412,-500.0,0.00021917,2]
[312147434,1705669846422,-209.91545339,0.00021917,2]
[312147436,1705669846432,-1406.79,0.00021917,2]
[312147438,1705669846442,-500.0,0.00021917,2]
[312147440,1705669846452,-9979.07,0.00021917,3]
[312147442,1705669846462,-500.0,0.00021917,2]
[312147444,1705669846472,-9979.07,0.00021917,3]
[312147446,1705669846483,-9979.07,0.00021917,3]
[312147448,1705669846493,-9979.07,0.00021917,3]
[312147450,1705669846503,-9979.07,0.00021917,3]
[312147452,1705669846514,-1676.68,0.00021917,2]
[312147454,1705669846524,-9979.07,0.00021917,3]
[312147456,1705669846534,-9979.07,0.00021917,3]
[312147458,1705669846544,-9979.07,0.00021917,3]
[312147461,1705669846554,-500.0,0.00021917,2]
[312147463,1705669846564,-9979.07,0.00021917,3]
[312147465,1705669846574,-9979.07,0.00021917,3]
[312147466,1705669846585,-9979.07,0.00021917,3]
[312147468,1705669846596,-9979.07,0.00021917,3]
[312147470,1705669846606,-9979.07,0.00021917,3]
[312147472,1705669846616,-9979.07,0.00021917,3]
[312147475,1705669846626,-722.53,0.00021917,2]
[312147477,1705669846636,-500.0,0.00021917,2]
[312147479,1705669846646,-9979.07,0.00021917,3]
[312147480,1705669846656,-528.2,0.00021917,2]
[312147482,1705669846667,-504.64538381,0.00021917,2]
[312147484,1705669846677,-9979.07,0.00021917,3]
[312147487,1705669846687,-9979.07,0.00021917,3]
[312147489,1705669846697,-9979.07,0.00021917,3]
[312147491,1705669846708,-9979.07,0.00021917,3]
[312147493,1705669846717,-9979.07,0.00021917,3]
[312147495,1705669846727,-9979.07,0.00021917,3]
[312147497,1705669846737,-500.0,0.00021917,2]
[312147499,1705669846747,-9979.07,0.00021917,3]
[312147501,1705669846757,-1258.05,0.00021917,2]
[312147503,1705669846766,-9979.07,0.00021917,3]
[312147504,1705669846776,-9979.27298352,0.00021917,3]
[312147505,1705669846789,-536.55,0.00021917,2]
[312147507,1705669846799,-591.46,0.00021917,2]
[312147509,1705669846808,-505.99322795,0.00021917,2]
[312147511,1705669846818,-500.0,0.00021917,2]
[312147513,1705669846828,-1526.19,0.00021917,2]
[312147515,1705669846838,-1185.94,0.00021917,2]
[312147517,1705669846848,-3581.47,0.00021917,2]
[312147519,1705669846858,-500.0,0.00021917,2]
[312147522,1705669846869,-500.0,0.00021917,2]
[312147524,1705669846880,-12146.1,0.00021917,2]
[312147526,1705669846890,-500.0,0.00021917,2]
[312147528,1705669846901,-1237.18,0.00021917,2]
[312147529,1705669846911,-2612.2,0.00021917,2]
[312147531,1705669846921,-858.97,0.00021917,2]
[312147534,1705669846930,-1056.03,0.00021917,2]
[312147536,1705669846940,-656.1,0.00021917,2]
[312147537,1705669846949,-2469.05,0.00021917,2]
[312147539,1705669846960,-500.0,0.00021917,2]
[312147541,1705669846971,-500.0,0.00021917,2]
[312147544,1705669846981,-9252.78,0.00021917,2]
[312147546,1705669846991,-602.84,0.00021917,2]
[312147548,1705669847002,-500.0,0.00021917,2]
[312147550,1705669847012,-15248.18,0.00021917,2]
[312147552,1705669847022,-8551.06,0.00021917,2]
[312147554,1705669847031,-2574.37,0.00021917,2]
[312147556,1705669847041,-767.02,0.00021917,2]
[312147558,1705669847050,-500.0,0.00021917,2]
[312147560,1705669847060,-577.79,0.00021917,2]
[312147562,1705669847069,-1439.62,0.00021917,2]
[312147564,1705669847079,-500.0,0.00021917,2]
[312147566,1705669847089,-1848.98,0.00021917,2]
[312147568,1705669847099,-543.58,0.00021917,2]
[312147570,1705669847109,-1228.0,0.00021917,2]
[312147572,1705669847119,-500.0,0.00021917,2]
[312147574,1705669847129,-2267.31,0.00021917,2]
[312147576,1705669847138,-500.0,0.00021917,2]
[312147577,1705669847148,-335.59,0.00021917,2]
[312147578,1705669847158,-507.77408629,0.00021917,2]
[312147580,1705669847169,-574.86,0.00021917,2]
[312147581,1705669847179,-500.0,0.00021917,2]
[312147582,1705669847190,-3257.42,0.00021917,2]
[312147583,1705669847200,-894.19,0.00021917,2]
[312147584,1705669847211,-500.0,0.00021917,2]
[312147585,1705669847221,-585.55,0.00021917,2]
[312147586,1705669847231,-1414.02,0.00021917,2]
[312147587,1705669847241,-2231.87,0.00021917,2]
[312147588,1705669847251,-5684.2,0.00021917,2]
[312147589,1705669847261,-939.86,0.00021917,2]
[312147590,1705669847271,-500.0,0.00021917,2]
[312147591,1705669847281,-500.0,0.00021917,2]
[312147593,1705669847291,-580.2,0.00021917,2]
[312147595,1705669847301,-500.0,0.00021917,2]
[312147596,1705669847312,-2102.76,0.00021917,2]
[312147597,1705669847322,-500.0,0.00021917,2]
[312147598,1705669847333,-504.29430285,0.00021917,2]
[312147599,1705669847344,-500.0,0.00021917,2]
[312147600,1705669847354,-1931.43,0.00021917,2]
[312147601,1705669847364,-1984.44,0.00021917,2]
[312147602,1705669847375,-4658.46,0.00021917,2]
[312147603,1705669847385,-2207.47,0.00021917,2]
[312147604,1705669847395,-3439.18,0.00021917,2]
[312147605,1705669847406,-1100.23,0.00021917,2]
[312147606,1705669847416,-500.0,0.00021917,2]
[312147607,1705669847427,-500.0,0.00021917,2]
[312147608,1705669847439,-500.0,0.00021917,2]
[312147609,1705669847449,-639.82,0.00021917,2]
[312147610,1705669847460,-500.0,0.00021917,2]
[312147611,1705669847470,-500.0,0.00021917,2]
[312147612,1705669847481,-644.68,0.00021917,2]
[312147613,1705669847492,-500.0,0.00021917,2]
[312147614,1705669847502,-512.96427436,0.00021917,2]
[312147615,1705669847513,-500.0,0.00021917,2]
[312147616,1705669847523,-500.0,0.00021917,2]
[312147617,1705669847534,-500.0,0.00021917,2]
[312147618,1705669847544,-500.0,0.00021917,2]
[312147619,1705669847555,-500.0,0.00021917,2]
[312147620,1705669847566,-759.77,0.00021917,2]
[312147621,1705669847577,-1956.81,0.00021917,2]
[312147623,1705669847587,-986.14,0.00021917,2]
[312147625,1705669847598,-500.0,0.00021917,2]
[312147627,1705669847609,-534.94,0.00021917,2]
[312147629,1705669847620,-686.98,0.00021917,2]
[312147631,1705669847630,-549.98,0.00021917,2]
[312147634,1705669847642,-916.9,0.00021917,2]
[312147635,1705669847652,-869.67,0.00021917,2]
[312147637,1705669847662,-7071.93,0.00021917,2]
[312147640,1705669847673,-1215.68,0.00021917,2]
[312147642,1705669847683,-2963.64,0.00021917,2]
[312147644,1705669847693,-1525.76,0.00021917,2]
[312147645,1705669847702,-621.36,0.00021917,2]
[312147646,1705669847713,-500.0,0.00021917,2]
[312147647,1705669847722,-500.0,0.00021917,2]
[312147648,1705669847734,-500.0,0.00021917,2]
[312147649,1705669847744,-500.0,0.00021917,2]
[312147650,1705669847754,-500.0,0.00021917,2]
[312147651,1705669847764,-2140.94,0.00021917,2]
[312147652,1705669847776,-710.71,0.00021917,2]
[312147653,1705669847788,-500.0,0.00021917,2]
[312147654,1705669847799,-842.67,0.00021917,2]
[312147655,1705669847812,-549.3,0.00021917,2]
[312147656,1705669847822,-4445.96,0.00021917,2]
[312147658,1705669847833,-500.0,0.00021917,2]
[312147659,1705669847843,-4442.84,0.00021917,2]
[312147661,1705669847853,-3252.64,0.00021917,2]
[312147663,1705669847864,-9432.03,0.00021917,2]
[312147664,1705669847874,-1494.52,0.00021917,2]
[312147665,1705669847884,-500.0,0.00021917,2]
[312147672,1705669848255,-500.0,0.00021917,2]
[312147673,1705669848265,-500.0,0.00021917,2]
[312147674,1705669848275,-2305.27,0.00021917,2]
[312147675,1705669848285,-1994.22,0.00021917,2]
[312147676,1705669848295,-500.0,0.00021917,2]
[312147677,1705669848305,-15331.08,0.00021917,2]
[312147678,1705669848315,-151.91478247,0.00021917,2]
[312147679,1705669848325,-500.0,0.00021917,2]
[312147680,1705669848335,-785.42,0.00021917,2]
[312147681,1705669848345,-544.14,0.00021917,2]
[312147682,1705669848356,-37740.3,0.00021917,2]
[312147683,1705669848366,-500.0,0.00021917,2]
[312147685,1705669848375,-575.23,0.00021917,2]
[312147687,1705669848386,-3240.46,0.00021917,2]
[312147689,1705669848396,-502.72660617,0.00021917,2]
[312147690,1705669848406,-500.0,0.00021917,2]
[312147691,1705669848417,-664.75,0.00021917,2]
[312147692,1705669848427,-500.0,0.00021917,2]
[312147693,1705669848437,-500.0,0.00021917,2]
[312147694,1705669848447,-500.0,0.00021917,2]
[312147695,1705669848458,-500.0,0.00021917,2]
[312147696,1705669848471,-1196.75,0.00021917,2]
[312147697,1705669848481,-500.0,0.00021917,2]
[312147698,1705669848491,-500.0,0.00021917,2]
[312147699,1705669848502,-1846.5,0.00021917,2]
[312147700,1705669848512,-665.6,0.00021917,2]
[312147701,1705669848522,-2233.52,0.00021917,2]
[312147702,1705669848533,-538.09,0.00021917,2]
[312147703,1705669848543,-2652.58,0.00021917,2]
[312147704,1705669848553,-500.0,0.00021917,2]
[312147705,1705669848563,-500.0,0.00021917,2]
[312147706,1705669848573,-1124.95,0.00021917,2]
[312147707,1705669848583,-500.0,0.00021917,2]
[312147708,1705669848594,-573.95,0.00021917,2]
[312147709,1705669848604,-3944.13,0.00021917,2]
[312147710,1705669848614,-1635.99,0.00021917,2]
[312147711,1705669848624,-500.0,0.00021917,2]
[312147712,1705669848635,-808.35,0.00021917,2]
[312147713,1705669848645,-750.32,0.00021917,2]
[312147714,1705669848655,-4547.59,0.00021917,2]
[312147715,1705669848665,-1281.81,0.00021917,2]
[312147716,1705669848675,-500.0,0.00021917,2]
[312147717,1705669848685,-500.0,0.00021917,2]
[312147718,1705669848695,-500.0,0.00021917,2]
[312147719,1705669848705,-8425.91,0.00021917,2]
[312147720,1705669848715,-500.0,0.00021917,2]
[312147721,1705669848727,-500.0,0.00021917,2]
[312147722,1705669848737,-506.59,0.00021917,2]
[312147723,1705669848747,-754.61,0.00021917,2]
[312147724,1705669848757,-780.91,0.00021917,2]
[312147725,1705669848767,-1705.42,0.00021917,2]
[312147726,1705669848778,-500.0,0.00021917,2]
[312147727,1705669848790,-591.74,0.00021917,2]
[312147728,1705669848800,-503.94769235,0.00021917,2]
[312147729,1705669848810,-574.32,0.00021917,2]
[312147730,1705669848819,-1313.23,0.00021917,2]
[312147731,1705669848831,-500.0,0.00021917,2]
[312147732,1705669848841,-500.0,0.00021917,2]
[312147733,1705669848851,-2028.69,0.00021917,2]
[312147734,1705669848861,-500.0,0.00021917,2]
[312147735,1705669848871,-500.0,0.00021917,2]
[312147736,1705669848883,-500.0,0.00021917,2]
[312147737,1705669848893,-633.91,0.00021917,2]
[312147738,1705669848903,-9076.22,0.00021917,2]
[312147739,1705669848913,-500.0,0.00021917,2]
[312147740,1705669848923,-924.14,0.00021917,2]
[312147741,1705669848933,-526.59,0.00021917,2]
[312147742,1705669848943,-500.0,0.00021917,2]
[312147743,1705669848953,-2029.72,0.00021917,2]
[312147744,1705669848963,-981.27,0.00021917,2]
[312147745,1705669848972,-500.0,0.00021917,2]
[312147746,1705669848982,-826.71,0.00021917,2]
[312147747,1705669848991,-1960.9,0.00021917,2]
[312147748,1705669849001,-500.0,0.00021917,2]
[312147749,1705669849011,-4783.55,0.00021917,2]
[312147750,1705669849021,-835.31,0.00021917,2]
[312147751,1705669849032,-500.0,0.00021917,2]
[312147752,1705669849041,-1577.31,0.00021917,2]
[312147753,1705669849051,-5207.41,0.00021917,2]
[312147754,1705669849061,-500.0,0.00021917,2]
[312147755,1705669849072,-500.0,0.00021917,2]
[312147756,1705669849082,-500.0,0.00021917,2]
[312147757,1705669849092,-500.0,0.00021917,2]
[312147758,1705669849102,-500.0,0.00021917,2]
[312147759,1705669849112,-500.0,0.00021917,2]
[312147760,1705669849122,-500.0,0.00021917,2]
[312147761,1705669849133,-3855.72,0.00021917,2]
[312147762,1705669849143,-500.0,0.00021917,2]
[312147763,1705669849153,-500.0,0.00021917,2]
[312147764,1705669849163,-500.0,0.00021917,2]
[312147765,1705669849174,-685.58,0.00021917,2]
[312147766,1705669849184,-1179.28,0.00021917,2]
[312147767,1705669849194,-793.67,0.00021917,2]
[312147768,1705669849203,-813.09,0.00021917,2]
[312147769,1705669849213,-583.17,0.00021917,2]
[312147770,1705669849223,-2276.82,0.00021917,2]
[312147771,1705669849233,-3177.97,0.00021917,2]
[312147772,1705669849243,-3710.39,0.00021917,2]
[312147773,1705669849253,-500.0,0.00021917,2]
[312147774,1705669849263,-500.0,0.00021917,2]
[312147775,1705669849273,-500.0,0.00021917,2]
[312147776,1705669849283,-500.0,0.00021917,2]
[312147777,1705669849294,-2628.92,0.00021917,2]
[312147778,1705669849304,-660.03,0.00021917,2]
[312147779,1705669849314,-550.62,0.00021917,2]
[312147780,1705669849324,-19369.32,0.00021917,2]
[312147781,1705669849336,-638.69,0.00021917,2]
[312147782,1705669849346,-500.0,0.00021917,2]
[312147783,1705669849356,-1034.13,0.00021917,2]
[312147784,1705669849366,-2000.88,0.00021917,2]
[312147785,1705669849376,-2148.61,0.00021917,2]
[312147786,1705669849387,-500.0,0.00021917,2]
[312147787,1705669849396,-500.0,0.00021917,2]
[312147788,1705669849406,-500.0,0.00021917,2]
[312147789,1705669849417,-1717.53,0.00021917,2]
[312147790,1705669849428,-25482.51,0.00021917,2]
[312147791,1705669849438,-194.60608516,0.00021917,2]
[312147792,1705669849449,-500.0,0.00021917,2]
[312147793,1705669849459,-500.0,0.00021917,2]
[312147794,1705669849470,-500.0,0.00021917,2]
[312147795,1705669849480,-1264.98,0.00021917,2]
[312147796,1705669849490,-500.0,0.00021917,2]
[312147797,1705669849501,-500.0,0.00021917,2]
[312147798,1705669849511,-524.01333113,0.00021917,2]
[312147799,1705669849521,-500.0,0.00021917,2]
[312147800,1705669849531,-746.64,0.00021917,2]
[312147801,1705669849541,-500.0,0.00021917,2]
[312147802,1705669849552,-1739.34,0.00021917,2]
[312147803,1705669849562,-500.0,0.00021917,2]
[312147804,1705669849572,-1153.95,0.00021917,2]
[312147805,1705669849584,-4305.99,0.00021917,2]
[312147806,1705669849593,-1444.66,0.00021917,2]
[312147807,1705669849604,-721.93,0.00021917,2]
[312147808,1705669849614,-1568.86,0.00021917,2]
[312147809,1705669849625,-1301.31,0.00021917,2]
[312147810,1705669849635,-500.0,0.00021917,2]
[312147811,1705669849645,-500.0,0.00021917,2]
[312147812,1705669849655,-1193.88,0.00021917,2]
[312147813,1705669849666,-500.0,0.00021917,2]
[312147814,1705669849676,-855.93,0.00021917,2]
[312147815,1705669849686,-500.0,0.00021917,2]
[312147816,1705669849696,-1184.09,0.00021917,2]
[312147817,1705669849706,-1441.39,0.00021917,2]
[312147818,1705669849715,-2315.09,0.00021917,2]
[312147819,1705669849726,-500.0,0.00021917,2]
[312147820,1705669849736,-2117.61,0.00021917,2]
[312147821,1705669849746,-980.44,0.00021917,2]
[312147822,1705669849755,-2124.5,0.00021917,2]
[312147823,1705669849765,-3846.66,0.00021917,2]
[312147824,1705669849775,-1637.31,0.00021917,2]
[312147825,1705669849787,-513.8,0.00021917,2]
[312147826,1705669849797,-757.52,0.00021917,2]
[312147827,1705669849807,-500.0,0.00021917,2]
[312147828,1705669849817,-500.0,0.00021917,2]
[312147829,1705669849828,-500.0,0.00021917,2]
[312147830,1705669849839,-500.0,0.00021917,2]
[312147831,1705669849849,-500.0,0.00021917,2]
[312147832,1705669849859,-883.7,0.00021917,2]
[312147833,1705669849869,-1482.25,0.00021917,2]
[312147834,1705669849881,-2977.49,0.00021917,2]
[312147835,1705669849892,-500.0,0.00021917,2]
[312147836,1705669849902,-2766.49,0.00021917,2]
[312147837,1705669849913,-500.0,0.00021917,2]
[312147838,1705669849922,-1781.63,0.00021917,2]
[312147839,1705669849932,-500.0,0.00021917,2]
[312147840,1705669849942,-661.91,0.00021917,2]
[312147841,1705669849952,-660.55,0.00021917,2]
[312147842,1705669849962,-537.32,0.00021917,2]
[312147843,1705669849971,-567.18,0.00021917,2]
[312147844,1705669849982,-500.0,0.00021917,2]
[312147845,1705669849993,-502.61747995,0.00021917,2]
[312147846,1705669850003,-500.0,0.00021917,2]
[312147847,1705669850012,-761.41,0.00021917,2]
[312147848,1705669850022,-500.0,0.00021917,2]
[312147849,1705669850032,-857.58,0.00021917,2]
[312147850,1705669850043,-649.92,0.00021917,2]
[312147851,1705669850053,-1153.39,0.00021917,2]
[312147852,1705669850063,-664.67,0.00021917,2]
[312147853,1705669850074,-500.0,0.00021917,2]
[312147854,1705669850085,-2418.64,0.00021917,2]
[312147855,1705669850097,-4399.62,0.00021917,2]
[312147856,1705669850108,-8804.12,0.00021917,2]
[312147857,1705669850119,-1464.05,0.00021917,2]
[312147858,1705669850130,-904.22,0.00021917,2]
[312147859,1705669850140,-500.0,0.00021917,2]
[312147860,1705669850150,-500.0,0.00021917,2]
[312147861,1705669850161,-2042.08,0.00021917,2]
[312147862,1705669850171,-500.0,0.00021917,2]
[312147863,1705669850182,-760.36,0.00021917,2]
[312147864,1705669850192,-500.0,0.00021917,2]
[312147865,1705669850202,-1340.55,0.00021917,2]
[312147866,1705669850213,-4233.95,0.00021917,2]
[312147867,1705669850224,-1033.87,0.00021917,2]
[312147868,1705669850234,-500.0,0.00021917,2]
[312147869,1705669850244,-1827.3,0.00021917,2]
[312147870,1705669850255,-500.0,0.00021917,2]
[312147871,1705669850265,-1837.39,0.00021917,2]
[312147872,1705669850275,-1378.23,0.00021917,2]
[312147873,1705669850286,-500.0,0.00021917,2]
[312147874,1705669850296,-500.0,0.00021917,2]
[312147875,1705669850306,-1397.44,0.00021917,2]
[312147876,1705669850316,-2761.46,0.00021917,2]
[312147877,1705669850326,-938.71,0.00021917,2]
[312147878,1705669850337,-1091.57,0.00021917,2]
[312147879,1705669850348,-500.0,0.00021917,2]
[312147880,1705669850358,-500.0,0.00021917,2]
[312147881,1705669850368,-500.0,0.00021917,2]
[312147882,1705669850378,-2441.81,0.00021917,2]
[312147883,1705669850388,-1145.22,0.00021917,2]
[312147884,1705669850399,-2230.55,0.00021917,2]
[312147885,1705669850409,-4496.97,0.00021917,2]
[312147886,1705669850419,-500.0,0.00021917,2]
[312147887,1705669850429,-500.0,0.00021917,2]
[312147888,1705669850439,-500.0,0.00021917,2]
[312147889,1705669850449,-915.54,0.00021917,2]
[312147890,1705669850463,-500.0,0.00021917,2]
[312147891,1705669850473,-1052.49,0.00021917,2]
[312147892,1705669850483,-500.0,0.00021917,2]
[312147893,1705669850494,-999.66,0.00021917,2]
[312147894,1705669850504,-1236.9,0.00021917,2]
[312147895,1705669850514,-7568.94,0.00021917,2]
[312147896,1705669850524,-1813.55,0.00021917,2]
[312147897,1705669850534,-1397.72,0.00021917,2]
[312147898,1705669850544,-715.61,0.00021917,2]
[312147899,1705669850554,-500.0,0.00021917,2]
[312147900,1705669850565,-500.0,0.00021917,2]
[312147901,1705669850575,-735.86,0.00021917,2]
[312147902,1705669850586,-500.0,0.00021917,2]
[312147903,1705669850596,-500.0,0.00021917,2]
[312147904,1705669850607,-500.0,0.00021917,2]
[312147905,1705669850618,-250.0,0.00021918,2]
[312147906,1705669850628,-15822.0,0.00021918,2]
[312147907,1705669850638,-10000.0,0.00021918,2]
[312147908,1705669850649,-200.0,0.00021918,2]
[312147909,1705669850659,-157.67,0.00021975,2]
[312147910,1705669850670,-251.33576022,0.00021985,2]
[312147911,1705669850680,-401.77,0.00021987,2]
[312147912,1705669850690,-150.77564097,0.0002199,2]
[312147913,1705669850700,-1131904.43690396,0.00022,2]
[312147914,1705669850802,-1748.00258789,0.00022,2]
[312147915,1705669850813,-1396.74209083,0.00022,2]
[312147916,1705669850824,-1041.63971272,0.00022,2]
[312147917,1705669850834,-44069.0,0.00022,2]
[312147918,1705669850844,-155.0,0.00022,2]
[312147919,1705669850854,-550.0,0.00022,3]
[312147920,1705669850864,-176.33,0.00022013,2]
[312147921,1705669850875,-434.43,0.00022032,2]
[312147922,1705669850886,-401.77,0.00022032,2]
[312147923,1705669850896,-401.77,0.00022032,2]
[312147924,1705669850905,-770.28,0.00022032,2]
[312147925,1705669850916,-964.88,0.00022032,2]
[312147926,1705669850926,-941.43,0.00022032,2]
[312147927,1705669850935,-941.43,0.00022032,2]
[312147928,1705669850945,-941.43,0.00022032,2]
[312147929,1705669850955,-941.43,0.00022032,2]
[312147930,1705669850965,-941.43,0.00022032,2]
[312147931,1705669850975,-803.54,0.00022032,2]
[312147932,1705669850985,-941.43,0.00022032,2]
[312147933,1705669850995,-941.43,0.00022032,2]
[312147934,1705669851005,-1140.0,0.00022067,2]
[312147935,1705669851015,-151.1,0.00022086,2]
[312147936,1705669851026,-1478.03438221,0.00022086,2]
[312147937,1705669851036,-588.13,0.00022133,2]
[312147938,1705669851046,-2777.79,0.0002219,2]
[312147939,1705669851057,-500.0,0.00022191,2]
[312147940,1705669851066,-500.0,0.00022191,2]
[312147941,1705669851077,-500.0,0.00022191,2]
[312147942,1705669851087,-505.95913945,0.00022191,2]
[312147943,1705669851098,-500.0,0.00022191,2]
[312147944,1705669851108,-500.0,0.00022191,2]
[312147945,1705669851118,-511.48566609,0.00022191,2]
[312147946,1705669851128,-500.0,0.00022191,2]
[312147947,1705669851138,-500.0,0.00022191,2]
[312147948,1705669851149,-500.0,0.00022191,2]
[312147949,1705669851159,-1166.14,0.00022191,2]
[312147950,1705669851169,-500.0,0.00022191,2]
[312147951,1705669851179,-500.0,0.00022191,2]
[312147952,1705669851189,-636.19,0.00022191,2]
[312147953,1705669851200,-535.61,0.00022191,2]
[312147954,1705669851210,-500.0,0.00022191,2]
[312147955,1705669851221,-508.7374201,0.00022191,2]
[312147956,1705669851230,-469.19370054,0.00022191,2]
[312147957,1705669851240,-500.0,0.00022191,2]
[312147958,1705669851250,-500.0,0.00022191,2]
[312147959,1705669851261,-500.0,0.00022191,2]
[312147960,1705669851272,-531.64716712,0.00022191,2]
[312147961,1705669851281,-881.3,0.00022191,2]
[312147962,1705669851291,-585.47507954,0.00022191,2]
[312147963,1705669851301,-500.0,0.00022191,2]
[312147964,1705669851311,-500.0,0.00022191,2]
[312147965,1705669851321,-1150.15,0.00022191,2]
[312147966,1705669851331,-500.0,0.00022191,2]
[312147967,1705669851342,-500.0,0.00022191,2]
[312147968,1705669851353,-500.0,0.00022191,2]
[312147969,1705669851363,-500.0,0.00022191,2]
[312147970,1705669851373,-500.0,0.00022191,2]
[312147971,1705669851383,-500.0,0.00022191,2]
[312147972,1705669851393,-500.0,0.00022191,2]
[312147973,1705669851403,-500.0,0.00022191,2]
[312147974,1705669851414,-558.96,0.00022191,2]
[312147975,1705669851424,-767.26,0.00022191,2]
[312147976,1705669851434,-500.0,0.00022191,2]
[312147977,1705669851444,-220.51719107,0.00022191,2]
[312147978,1705669851454,-671.71,0.00022191,2]
[312147979,1705669851464,-523.14152647,0.00022191,2]
[312147980,1705669851474,-500.0,0.00022191,2]
[312147981,1705669851484,-500.0,0.00022191,2]
[312147982,1705669851494,-500.0,0.00022191,2]
[312147983,1705669851504,-500.0,0.00022191,2]
[312147984,1705669851515,-545.37,0.00022191,2]
[312147986,1705669851525,-500.0,0.00022191,2]
[312147987,1705669851536,-698.53,0.00022191,2]
[312147988,1705669851546,-500.0,0.00022191,2]
[312147989,1705669851556,-500.0,0.00022191,2]
[312147990,1705669851566,-500.0,0.00022191,2]
[312147991,1705669851576,-500.0,0.00022191,2]
[312147992,1705669851586,-500.0,0.00022191,2]
[312147993,1705669851596,-790.21,0.00022191,2]
[312147994,1705669851606,-500.0,0.00022191,2]
[312147995,1705669851616,-703.41,0.00022191,2]
[312147996,1705669851626,-500.0,0.00022191,2]
[312147997,1705669851639,-500.0,0.00022191,2]
[312147998,1705669851650,-895.32,0.00022191,2]
[312147999,1705669851660,-502.0436567,0.00022191,2]
[312148000,1705669851670,-500.0,0.00022191,2]
[312148001,1705669851680,-500.0,0.00022191,2]
[312148002,1705669851690,-500.0,0.00022191,2]
[312148003,1705669851700,-571.69,0.00022191,2]
[312148004,1705669851711,-647.03,0.00022191,2]
[312148005,1705669851721,-500.0,0.00022191,2]
[312148006,1705669851731,-1927.09,0.00022191,2]
[312148007,1705669851741,-500.0,0.00022191,2]
[312148008,1705669851752,-711.44,0.00022191,2]
[312148009,1705669851762,-500.0,0.00022191,2]
[312148010,1705669851772,-500.0,0.00022191,2]
[312148011,1705669851784,-739.94,0.00022191,2]
[312148012,1705669851794,-500.0,0.00022191,2]
[312148013,1705669851804,-435.50580321,0.00022191,2]
[312148014,1705669851815,-500.0,0.00022191,2]
[312148015,1705669851825,-1124.59,0.00022191,2]
[312148016,1705669851835,-500.0,0.00022191,2]
[312148017,1705669851845,-428.74558606,0.00022191,2]
[312148018,1705669851855,-882.8,0.00022191,2]
[312148019,1705669851865,-500.0,0.00022191,2]
[312148020,1705669851877,-664.41,0.00022191,2]
[312148021,1705669851888,-507.69,0.00022191,2]
[312148022,1705669851898,-883.64,0.00022191,2]
[312148023,1705669851908,-500.0,0.00022191,2]